[Event "*** Titled Tuesday Blitz"]
[Site "Chess.com"]
[Date "2021.03.30"]
[Round "1"]
[White "QuintilianoR"]
[Black "SHIVACalypso"]
[Result "1-0"]
[WhiteElo "2740"]
[BlackElo "2398"]
[TimeControl "180+1"]
[EndTime "10:05:04 PDT"]
[Termination "QuintilianoR won by resignation"]

1. Nf3 {[%clk 0:03:00.9]} 1... Nf6 {[%clk 0:02:59.6]} 2. b3 {[%clk 0:03:00.6]}
2... e6 {[%clk 0:02:59]} 3. Bb2 {[%clk 0:03:01.1]} 3... d5 {[%clk 0:02:58.1]} 4.
c4 {[%clk 0:03:01.5]} 4... Be7 {[%clk 0:02:53.2]} 5. e3 {[%clk 0:03:01.7]} 5...
O-O {[%clk 0:02:49.8]} 6. Nc3 {[%clk 0:03:02]} 6... b6 {[%clk 0:02:46.2]} 7. d4
{[%clk 0:02:59.3]} 7... Bb7 {[%clk 0:02:46.1]} 8. cxd5 {[%clk 0:02:59.5]} 8...
Nxd5 {[%clk 0:02:45]} 9. Bd3 {[%clk 0:02:58.2]} 9... Nd7 {[%clk 0:02:39.8]} 10.
O-O {[%clk 0:02:57.8]} 10... N7f6 {[%clk 0:02:37.6]} 11. Nxd5 {[%clk 0:02:38.1]}
11... Nxd5 {[%clk 0:02:36.9]} 12. Rc1 {[%clk 0:02:33.2]} 12... c5 {[%clk
0:02:36.2]} 13. dxc5 {[%clk 0:02:20.5]} 13... Bxc5 {[%clk 0:02:37.1]} 14. a3
{[%clk 0:02:20.9]} 14... Rc8 {[%clk 0:02:32.8]} 15. b4 {[%clk 0:02:17.8]} 15...
Be7 {[%clk 0:02:30.1]} 16. Qe2 {[%clk 0:02:15.8]} 16... Bf6 {[%clk 0:02:25.6]}
17. Rfd1 {[%clk 0:02:14.7]} 17... Bxb2 {[%clk 0:02:23.1]} 18. Qxb2 {[%clk
0:02:15.6]} 18... Qf6 {[%clk 0:02:22.1]} 19. Qxf6 {[%clk 0:02:06.5]} 19... Nxf6
{[%clk 0:02:21.6]} 20. Nd4 {[%clk 0:02:05.6]} 20... a6 {[%clk 0:02:18.7]} 21. f3
{[%clk 0:02:03.8]} 21... Rfd8 {[%clk 0:02:05.5]} 22. Be2 {[%clk 0:01:39.4]}
22... Nd5 {[%clk 0:01:58.2]} 23. Kf2 {[%clk 0:01:35]} 23... Kf8 {[%clk
0:01:52.8]} 24. Bc4 {[%clk 0:01:26]} 24... Nf6 {[%clk 0:01:45.5]} 25. Bxe6
{[%clk 0:01:13]} 25... fxe6 {[%clk 0:01:30.1]} 26. Nxe6+ {[%clk 0:01:12.1]}
26... Ke7 {[%clk 0:01:30.3]} 27. Nxd8 {[%clk 0:01:08.8]} 27... Rxd8 {[%clk
0:01:30.4]} 28. Rc7+ {[%clk 0:01:08.5]} 28... Rd7 {[%clk 0:01:20.3]} 29. Rdxd7+
{[%clk 0:01:07.7]} 29... Nxd7 {[%clk 0:01:21.2]} 30. Rxb7 {[%clk 0:01:08.6]}
30... Kd6 {[%clk 0:01:18.5]} 31. Rxd7+ {[%clk 0:01:08.1]} 31... Kxd7 {[%clk
0:01:18.5]} 32. e4 {[%clk 0:01:09]} 32... Kc6 {[%clk 0:01:18.7]} 33. f4 {[%clk
0:01:05.3]} 33... Kb5 {[%clk 0:01:18.3]} 34. e5 {[%clk 0:01:05.7]} 1-0

[Event "*** Titled Tuesday Blitz"]
[Site "Chess.com"]
[Date "2021.03.30"]
[Round "1"]
[White "louis198"]
[Black "biveklama"]
[Result "1-0"]
[WhiteElo "2583"]
[BlackElo "2288"]
[TimeControl "180+1"]
[EndTime "10:05:11 PDT"]
[Termination "louis198 won by resignation"]

1. d4 {[%clk 0:02:55.9]} 1... d5 {[%clk 0:02:59.9]} 2. c4 {[%clk 0:02:56.8]}
2... c6 {[%clk 0:03:00.3]} 3. Nc3 {[%clk 0:02:56.1]} 3... Nf6 {[%clk 0:03:00.5]}
4. Nf3 {[%clk 0:02:53.8]} 4... dxc4 {[%clk 0:03:00.7]} 5. e3 {[%clk 0:02:53.2]}
5... Bf5 {[%clk 0:02:59.9]} 6. a4 {[%clk 0:02:50.9]} 6... e6 {[%clk 0:02:56.8]}
7. Bxc4 {[%clk 0:02:50.9]} 7... Nbd7 {[%clk 0:02:56.3]} 8. O-O {[%clk
0:02:50.6]} 8... Nb6 {[%clk 0:02:54.9]} 9. Be2 {[%clk 0:02:47.6]} 9... a5 {[%clk
0:02:54.5]} 10. h3 {[%clk 0:02:46.7]} 10... Bb4 {[%clk 0:02:50.9]} 11. Ne5
{[%clk 0:02:44.9]} 11... O-O {[%clk 0:02:47.4]} 12. Bd2 {[%clk 0:02:44.8]} 12...
Re8 {[%clk 0:02:41.7]} 13. Rc1 {[%clk 0:02:44.1]} 13... h6 {[%clk 0:02:39.2]}
14. Be1 {[%clk 0:02:39.9]} 14... Nfd7 {[%clk 0:02:27.5]} 15. Nxd7 {[%clk
0:02:36.8]} 15... Qxd7 {[%clk 0:02:26.4]} 16. f3 {[%clk 0:02:35]} 16... Rad8
{[%clk 0:02:19.9]} 17. Bf2 {[%clk 0:02:35]} 17... Bg6 {[%clk 0:02:09.6]} 18. Qb3
{[%clk 0:02:32.9]} 18... e5 {[%clk 0:02:03.5]} 19. dxe5 {[%clk 0:02:30.4]} 19...
Rxe5 {[%clk 0:02:03.6]} 20. Rfd1 {[%clk 0:02:29.8]} 20... Qc8 {[%clk 0:02:01.1]}
21. Rxd8+ {[%clk 0:02:28.2]} 21... Qxd8 {[%clk 0:02:02]} 22. Rd1 {[%clk
0:02:27.8]} 22... Qe8 {[%clk 0:02:00.5]} 23. e4 {[%clk 0:02:27.8]} 23... Nc8
{[%clk 0:01:50.8]} 24. Na2 {[%clk 0:02:27.3]} 24... Qf8 {[%clk 0:01:09.6]} 25.
Nxb4 {[%clk 0:02:25.4]} 25... axb4 {[%clk 0:01:10]} 26. Rd7 {[%clk 0:02:22.9]}
26... Re7 {[%clk 0:01:06.4]} 27. Bc5 {[%clk 0:02:22.4]} 27... Rxd7 {[%clk
0:01:03.6]} 28. Bxf8 {[%clk 0:02:22]} 28... Kxf8 {[%clk 0:01:04.5]} 29. Qxb4+
{[%clk 0:02:22.1]} 29... Ke8 {[%clk 0:01:04.7]} 30. a5 {[%clk 0:02:19.1]} 30...
f6 {[%clk 0:01:01.9]} 31. a6 {[%clk 0:02:18.5]} 31... bxa6 {[%clk 0:01:02.7]}
32. Qb8 {[%clk 0:02:17.3]} 32... Rd8 {[%clk 0:01:01]} 33. Bxa6 {[%clk
0:02:15.9]} 33... Ne7 {[%clk 0:01:01.3]} 34. Qb6 {[%clk 0:02:14.6]} 34... Bf7
{[%clk 0:01:00.3]} 35. Bb7 {[%clk 0:02:12.6]} 35... Rd6 {[%clk 0:00:56.2]} 36.
Qc7 {[%clk 0:02:08.7]} 36... Rd1+ {[%clk 0:00:56.1]} 37. Kh2 {[%clk 0:02:08.5]}
37... Rc1 {[%clk 0:00:54.3]} 38. b4 {[%clk 0:02:06.4]} 38... Be6 {[%clk
0:00:54.2]} 39. b5 {[%clk 0:02:03.8]} 39... Bd7 {[%clk 0:00:54.2]} 40. b6 {[%clk
0:02:02.7]} 40... Rb1 {[%clk 0:00:52.6]} 41. Ba6 {[%clk 0:02:01.6]} 1-0

[Event "*** Titled Tuesday Blitz"]
[Site "Chess.com"]
[Date "2021.03.30"]
[Round "1"]
[White "sokidze"]
[Black "bolence16"]
[Result "1-0"]
[WhiteElo "2789"]
[BlackElo "2419"]
[TimeControl "180+1"]
[EndTime "10:05:14 PDT"]
[Termination "sokidze won by resignation"]

1. e4 {[%clk 0:03:00.8]} 1... e5 {[%clk 0:03:00.2]} 2. Nf3 {[%clk 0:03:00.6]}
2... Nc6 {[%clk 0:03:00.8]} 3. Bb5 {[%clk 0:03:00.6]} 3... Nd4 {[%clk
0:03:00.8]} 4. Nxd4 {[%clk 0:02:54.9]} 4... exd4 {[%clk 0:03:01.7]} 5. O-O
{[%clk 0:02:50.4]} 5... c6 {[%clk 0:03:02.1]} 6. Bc4 {[%clk 0:02:47.3]} 6... a5
{[%clk 0:03:02.2]} 7. a4 {[%clk 0:02:39.2]} 7... Nf6 {[%clk 0:03:01.9]} 8. Re1
{[%clk 0:02:29.3]} 8... Bc5 {[%clk 0:03:01.5]} 9. d3 {[%clk 0:02:10.9]} 9... O-O
{[%clk 0:02:52.9]} 10. e5 {[%clk 0:02:07.4]} 10... d5 {[%clk 0:02:50.1]} 11.
exf6 {[%clk 0:01:53.9]} 11... dxc4 {[%clk 0:02:48.1]} 12. fxg7 {[%clk
0:01:47.5]} 12... Kxg7 {[%clk 0:02:26]} 13. Qh5 {[%clk 0:01:24.2]} 13... Re8
{[%clk 0:02:15.9]} 14. Bh6+ {[%clk 0:01:16.8]} 14... Kh8 {[%clk 0:01:59.5]} 15.
Nd2 {[%clk 0:01:16.4]} 15... Bb4 {[%clk 0:01:47.4]} 16. Bg5 {[%clk 0:00:54.2]}
16... Rxe1+ {[%clk 0:00:51.9]} 17. Rxe1 {[%clk 0:00:53.7]} 17... Qd6 {[%clk
0:00:51.6]} 18. Qxf7 {[%clk 0:00:48.6]} 1-0

[Event "*** Titled Tuesday Blitz"]
[Site "Chess.com"]
[Date "2021.03.30"]
[Round "1"]
[White "MaevskiyNikolay"]
[Black "HrvojeZagreb"]
[Result "1-0"]
[WhiteElo "2531"]
[BlackElo "2209"]
[TimeControl "180+1"]
[EndTime "10:05:17 PDT"]
[Termination "MaevskiyNikolay won on time"]

1. Nf3 {[%clk 0:03:00.9]} 1... f5 {[%clk 0:02:57.8]} 2. d4 {[%clk 0:02:59.1]}
2... Nf6 {[%clk 0:02:57.6]} 3. g3 {[%clk 0:02:56.9]} 3... e6 {[%clk 0:02:57.4]}
4. Bg2 {[%clk 0:02:56.1]} 4... Be7 {[%clk 0:02:57.9]} 5. c4 {[%clk 0:02:56]}
5... O-O {[%clk 0:02:58.3]} 6. d5 {[%clk 0:02:56.4]} 6... Ne4 {[%clk 0:02:28.7]}
7. O-O {[%clk 0:02:55]} 7... b5 {[%clk 0:02:25.5]} 8. cxb5 {[%clk 0:02:51.6]}
8... a6 {[%clk 0:02:20.2]} 9. dxe6 {[%clk 0:02:50.3]} 9... dxe6 {[%clk
0:02:18.3]} 10. Qxd8 {[%clk 0:02:45.5]} 10... Rxd8 {[%clk 0:02:19.2]} 11. Nfd2
{[%clk 0:02:42.6]} 11... Nxd2 {[%clk 0:02:08]} 12. Nxd2 {[%clk 0:02:39.2]} 12...
Ra7 {[%clk 0:02:05.9]} 13. bxa6 {[%clk 0:02:36.7]} 13... Bxa6 {[%clk 0:02:02.1]}
14. Re1 {[%clk 0:02:30.2]} 14... Bb4 {[%clk 0:01:55.8]} 15. a3 {[%clk
0:02:19.7]} 15... Bxd2 {[%clk 0:01:27.4]} 16. Rd1 {[%clk 0:02:18.4]} 16... Bxe2
{[%clk 0:01:24.5]} 17. Rxd2 {[%clk 0:02:18.1]} 17... Rxd2 {[%clk 0:01:22.1]} 18.
Bxd2 {[%clk 0:02:19]} 18... Nd7 {[%clk 0:01:11.9]} 19. Rc1 {[%clk 0:02:17.4]}
19... Nb6 {[%clk 0:00:41.7]} 20. Be3 {[%clk 0:02:13.2]} 20... Bd3 {[%clk
0:00:10.8]} 21. Rc6 {[%clk 0:02:01.4]} 21... Kf7 {[%clk 0:00:02.4]} 22. Bxb6
{[%clk 0:01:55.3]} 22... cxb6 {[%clk 0:00:02.7]} 23. Rxb6 {[%clk 0:01:55.6]}
23... Bc4 {[%clk 0:00:02.3]} 24. h4 {[%clk 0:01:52.4]} 24... Bd5 {[%clk
0:00:02.1]} 25. Bf1 {[%clk 0:01:49.3]} 1-0

[Event "*** Titled Tuesday Blitz"]
[Site "Chess.com"]
[Date "2021.03.30"]
[Round "1"]
[White "MikeSailer"]
[Black "Balla_Tamas"]
[Result "0-1"]
[WhiteElo "2115"]
[BlackElo "2508"]
[TimeControl "180+1"]
[EndTime "10:05:18 PDT"]
[Termination "Balla_Tamas won by checkmate"]

1. d4 {[%clk 0:02:59.7]} 1... f5 {[%clk 0:02:55.2]} 2. e4 {[%clk 0:02:58.5]}
2... fxe4 {[%clk 0:02:54.5]} 3. Nc3 {[%clk 0:02:58.6]} 3... Nf6 {[%clk
0:02:53.1]} 4. Bg5 {[%clk 0:02:58.9]} 4... c6 {[%clk 0:02:52.3]} 5. Bxf6 {[%clk
0:02:55.4]} 5... exf6 {[%clk 0:02:52]} 6. Nxe4 {[%clk 0:02:55.8]} 6... d5 {[%clk
0:02:52.2]} 7. Ng3 {[%clk 0:02:55.6]} 7... Bd6 {[%clk 0:02:51.2]} 8. Bd3 {[%clk
0:02:55.5]} 8... Qe7+ {[%clk 0:02:50.2]} 9. N1e2 {[%clk 0:02:54.8]} 9... g6
{[%clk 0:02:50.1]} 10. O-O {[%clk 0:02:54.9]} 10... O-O {[%clk 0:02:50.1]} 11.
Re1 {[%clk 0:02:55.6]} 11... Qc7 {[%clk 0:02:47.4]} 12. c4 {[%clk 0:02:54]}
12... dxc4 {[%clk 0:02:45]} 13. Bxc4+ {[%clk 0:02:54.2]} 13... Kh8 {[%clk
0:02:45.2]} 14. h3 {[%clk 0:02:39.2]} 14... Nd7 {[%clk 0:02:41.4]} 15. Rc1
{[%clk 0:02:39.1]} 15... Nb6 {[%clk 0:02:40.3]} 16. Bb3 {[%clk 0:02:39.3]} 16...
f5 {[%clk 0:02:28.1]} 17. Nf1 {[%clk 0:02:34.3]} 17... Qg7 {[%clk 0:02:17.6]}
18. Nc3 {[%clk 0:02:30.4]} 18... Bd7 {[%clk 0:02:14.4]} 19. d5 {[%clk
0:02:30.6]} 19... c5 {[%clk 0:02:11.6]} 20. Na4 {[%clk 0:02:22]} 20... Nxa4
{[%clk 0:02:03.4]} 21. Bxa4 {[%clk 0:02:22.5]} 21... b5 {[%clk 0:02:03.4]} 22.
Bc2 {[%clk 0:02:06.8]} 22... Qxb2 {[%clk 0:02:01.4]} 23. Nd2 {[%clk 0:01:56.1]}
23... Rae8 {[%clk 0:01:54.3]} 24. Nf3 {[%clk 0:01:51.3]} 24... Qf6 {[%clk
0:01:43.3]} 25. Qd2 {[%clk 0:01:48.8]} 25... Kg7 {[%clk 0:01:36.9]} 26. Qa5
{[%clk 0:01:40.3]} 26... Bb8 {[%clk 0:01:35]} 27. a4 {[%clk 0:01:36.9]} 27... a6
{[%clk 0:01:30.5]} 28. Bb1 {[%clk 0:01:22.2]} 28... c4 {[%clk 0:01:28]} 29. axb5
{[%clk 0:01:12.8]} 29... axb5 {[%clk 0:01:27.2]} 30. Rcd1 {[%clk 0:01:11.8]}
30... Qd6 {[%clk 0:01:09.2]} 31. Nd4 {[%clk 0:01:05.7]} 31... Qh2+ {[%clk
0:01:06.6]} 32. Kf1 {[%clk 0:01:04.8]} 32... Qh1# {[%clk 0:01:06.5]} 0-1

[Event "*** Titled Tuesday Blitz"]
[Site "Chess.com"]
[Date "2021.03.30"]
[Round "1"]
[White "retropwr"]
[Black "Zkid"]
[Result "0-1"]
[WhiteElo "2442"]
[BlackElo "2848"]
[TimeControl "180+1"]
[EndTime "10:05:23 PDT"]
[Termination "Zkid won by resignation"]

1. c4 {[%clk 0:03:00.9]} 1... e5 {[%clk 0:02:57.9]} 2. Nc3 {[%clk 0:03:00.4]}
2... Nc6 {[%clk 0:02:55.9]} 3. Nf3 {[%clk 0:02:58]} 3... Nf6 {[%clk 0:02:53.4]}
4. e3 {[%clk 0:02:57.6]} 4... Bb4 {[%clk 0:02:44.5]} 5. Qc2 {[%clk 0:02:54]}
5... Bxc3 {[%clk 0:02:43.4]} 6. Qxc3 {[%clk 0:02:53.9]} 6... Qe7 {[%clk
0:02:43.4]} 7. d4 {[%clk 0:02:49.8]} 7... exd4 {[%clk 0:02:31.9]} 8. Nxd4 {[%clk
0:02:50.7]} 8... Nxd4 {[%clk 0:02:32.2]} 9. Qxd4 {[%clk 0:02:49.8]} 9... c5
{[%clk 0:02:32.8]} 10. Qd2 {[%clk 0:02:15.1]} 10... Qe5 {[%clk 0:02:07.3]} 11.
Be2 {[%clk 0:02:05.6]} 11... O-O {[%clk 0:02:01.7]} 12. O-O {[%clk 0:01:59]}
12... d5 {[%clk 0:01:58.1]} 13. cxd5 {[%clk 0:01:56.2]} 13... Rd8 {[%clk
0:01:55.6]} 14. Qc3 {[%clk 0:01:27.7]} 14... Qxc3 {[%clk 0:01:45.7]} 15. bxc3
{[%clk 0:01:28.6]} 15... Nxd5 {[%clk 0:01:45.8]} 16. Bb2 {[%clk 0:01:12]} 16...
Be6 {[%clk 0:01:43.8]} 17. Rfd1 {[%clk 0:01:07.5]} 17... Nb6 {[%clk 0:01:41.3]}
18. Ba3 {[%clk 0:00:38.5]} 18... Na4 {[%clk 0:01:33.1]} 19. Rxd8+ {[%clk
0:00:23.3]} 19... Rxd8 {[%clk 0:01:32.4]} 20. Bb5 {[%clk 0:00:23.9]} 20... Nxc3
{[%clk 0:01:30.6]} 21. Bf1 {[%clk 0:00:19.1]} 21... b6 {[%clk 0:01:27.5]} 22.
Bb2 {[%clk 0:00:17.1]} 22... Nxa2 {[%clk 0:01:27]} 23. f4 {[%clk 0:00:11.9]}
23... f6 {[%clk 0:01:24.9]} 0-1

[Event "*** Titled Tuesday Blitz"]
[Site "Chess.com"]
[Date "2021.03.30"]
[Round "1"]
[White "Vandros57"]
[Black "MasterKroket"]
[Result "0-1"]
[WhiteElo "2200"]
[BlackElo "2528"]
[TimeControl "180+1"]
[EndTime "10:05:25 PDT"]
[Termination "MasterKroket won by resignation"]

1. d4 {[%clk 0:02:58.2]} 1... Nf6 {[%clk 0:03:00]} 2. c4 {[%clk 0:02:56.8]} 2...
e6 {[%clk 0:03:00.4]} 3. Nf3 {[%clk 0:02:54.2]} 3... d5 {[%clk 0:03:00.6]} 4.
Nc3 {[%clk 0:02:52]} 4... Be7 {[%clk 0:02:59.7]} 5. Bg5 {[%clk 0:02:47.7]} 5...
O-O {[%clk 0:02:59.4]} 6. e3 {[%clk 0:02:44.8]} 6... Nbd7 {[%clk 0:02:58.9]} 7.
Rc1 {[%clk 0:02:42.6]} 7... a6 {[%clk 0:02:57.9]} 8. cxd5 {[%clk 0:02:38]} 8...
exd5 {[%clk 0:02:57.5]} 9. Bd3 {[%clk 0:02:36.3]} 9... Re8 {[%clk 0:02:55.4]}
10. O-O {[%clk 0:02:35.4]} 10... Nf8 {[%clk 0:02:53.7]} 11. h3 {[%clk 0:02:31]}
11... Ne6 {[%clk 0:02:51.7]} 12. Bxf6 {[%clk 0:02:29.2]} 12... Bxf6 {[%clk
0:02:52.6]} 13. Ne5 {[%clk 0:02:26.8]} 13... c5 {[%clk 0:02:49.3]} 14. f4 {[%clk
0:02:22.4]} 14... cxd4 {[%clk 0:02:45.1]} 15. exd4 {[%clk 0:02:21.6]} 15... Qb6
{[%clk 0:02:37.1]} 16. Ne2 {[%clk 0:01:47.8]} 16... g6 {[%clk 0:02:29.5]} 17.
Bb1 {[%clk 0:01:44.3]} 17... Nxf4 {[%clk 0:02:17.9]} 18. Rxf4 {[%clk 0:01:28]}
18... Bxe5 {[%clk 0:02:17]} 19. Rf3 {[%clk 0:01:25.5]} 19... Bg7 {[%clk
0:02:08.6]} 20. Kh1 {[%clk 0:01:23.3]} 20... Qxb2 {[%clk 0:02:04.3]} 21. Nf4
{[%clk 0:01:11.2]} 21... Qxd4 {[%clk 0:01:54.6]} 22. Nxd5 {[%clk 0:01:06.5]}
22... Be6 {[%clk 0:01:24.4]} 23. Qxd4 {[%clk 0:00:58.2]} 23... Bxd4 {[%clk
0:01:23.9]} 24. Nc7 {[%clk 0:00:49.4]} 24... Rac8 {[%clk 0:01:23]} 25. Rd1
{[%clk 0:00:48.2]} 25... Rxc7 {[%clk 0:01:19]} 0-1

[Event "*** Titled Tuesday Blitz"]
[Site "Chess.com"]
[Date "2021.03.30"]
[Round "1"]
[White "Grandmaster1369"]
[Black "GM_Crest"]
[Result "1-0"]
[WhiteElo "2420"]
[BlackElo "2729"]
[TimeControl "180+1"]
[EndTime "10:05:27 PDT"]
[Termination "Grandmaster1369 won on time"]

1. e4 {[%clk 0:02:47.1]} 1... c5 {[%clk 0:02:58.1]} 2. Nf3 {[%clk 0:02:45]} 2...
d6 {[%clk 0:02:58.1]} 3. Bb5+ {[%clk 0:02:44.5]} 3... Bd7 {[%clk 0:02:57.7]} 4.
Bxd7+ {[%clk 0:02:41.8]} 4... Qxd7 {[%clk 0:02:58]} 5. O-O {[%clk 0:02:42.4]}
5... Nf6 {[%clk 0:02:57.8]} 6. Re1 {[%clk 0:02:41.2]} 6... Nc6 {[%clk
0:02:57.4]} 7. c3 {[%clk 0:02:41.4]} 7... e6 {[%clk 0:02:56.3]} 8. d4 {[%clk
0:02:41.9]} 8... cxd4 {[%clk 0:02:56.5]} 9. cxd4 {[%clk 0:02:42.8]} 9... d5
{[%clk 0:02:56.8]} 10. e5 {[%clk 0:02:43.4]} 10... Ne4 {[%clk 0:02:56.8]} 11.
Nbd2 {[%clk 0:02:44]} 11... Nxd2 {[%clk 0:02:56.2]} 12. Bxd2 {[%clk 0:02:44.9]}
12... Be7 {[%clk 0:02:56.5]} 13. Rc1 {[%clk 0:02:45.3]} 13... h6 {[%clk
0:02:55.5]} 14. Rc3 {[%clk 0:02:45.3]} 14... O-O {[%clk 0:02:55.6]} 15. h4
{[%clk 0:02:43.8]} 15... f6 {[%clk 0:02:54.5]} 16. exf6 {[%clk 0:02:43.8]} 16...
Rxf6 {[%clk 0:02:54.4]} 17. Rce3 {[%clk 0:02:42.5]} 17... Raf8 {[%clk
0:02:51.1]} 18. Qe2 {[%clk 0:02:40.1]} 18... Nxd4 {[%clk 0:01:27.2]} 19. Nxd4
{[%clk 0:02:27.7]} 19... Rxf2 {[%clk 0:01:27.3]} 20. Qd3 {[%clk 0:02:17.3]}
20... e5 {[%clk 0:00:59]} 21. Nf3 {[%clk 0:02:09.4]} 21... Rxg2+ {[%clk
0:00:16.1]} 22. Kxg2 {[%clk 0:02:09.7]} 22... Qg4+ {[%clk 0:00:16.2]} 23. Kh1
{[%clk 0:02:06.7]} 23... d4 {[%clk 0:00:15]} 24. Nh2 {[%clk 0:02:03.1]} 24...
Qxh4 {[%clk 0:00:13.4]} 25. Rh3 {[%clk 0:02:02.8]} 25... Qf6 {[%clk 0:00:12.3]}
26. Qe4 {[%clk 0:01:57.3]} 26... Bd6 {[%clk 0:00:10.8]} 27. Ng4 {[%clk
0:01:54.3]} 27... Qe6 {[%clk 0:00:11]} 28. Rg1 {[%clk 0:01:50.7]} 28... Kh8
{[%clk 0:00:08.6]} 29. Bxh6 {[%clk 0:01:49.9]} 1-0

[Event "*** Titled Tuesday Blitz"]
[Site "Chess.com"]
[Date "2021.03.30"]
[Round "1"]
[White "Vincent_Vega95"]
[Black "Oglob71"]
[Result "1-0"]
[WhiteElo "2748"]
[BlackElo "2404"]
[TimeControl "180+1"]
[EndTime "10:05:27 PDT"]
[Termination "Vincent_Vega95 won by resignation"]

1. d4 {[%clk 0:02:57.3]} 1... Nf6 {[%clk 0:02:59.8]} 2. c4 {[%clk 0:02:57.1]}
2... e6 {[%clk 0:03:00.5]} 3. Nc3 {[%clk 0:02:57]} 3... Bb4 {[%clk 0:03:01]} 4.
e3 {[%clk 0:02:57.7]} 4... O-O {[%clk 0:02:59.9]} 5. Ne2 {[%clk 0:02:58.3]} 5...
d5 {[%clk 0:02:59.9]} 6. a3 {[%clk 0:02:58.8]} 6... Be7 {[%clk 0:02:59.2]} 7.
cxd5 {[%clk 0:02:58.9]} 7... exd5 {[%clk 0:02:57.5]} 8. g3 {[%clk 0:02:59.2]}
8... Re8 {[%clk 0:02:57.8]} 9. Bg2 {[%clk 0:02:59.6]} 9... c6 {[%clk 0:02:57.7]}
10. O-O {[%clk 0:03:00.1]} 10... Bf5 {[%clk 0:02:56.4]} 11. f3 {[%clk 0:03:00]}
11... c5 {[%clk 0:02:56.4]} 12. g4 {[%clk 0:02:59.4]} 12... Be6 {[%clk
0:02:54.9]} 13. Nf4 {[%clk 0:02:54.9]} 13... cxd4 {[%clk 0:02:48.3]} 14. exd4
{[%clk 0:02:55.8]} 14... Bc8 {[%clk 0:02:47.5]} 15. g5 {[%clk 0:02:53]} 15...
Nfd7 {[%clk 0:02:47.1]} 16. Nfxd5 {[%clk 0:02:51.2]} 16... Nb6 {[%clk
0:02:30.1]} 17. Nxe7+ {[%clk 0:02:41.4]} 17... Rxe7 {[%clk 0:02:30.1]} 18. f4
{[%clk 0:02:30.8]} 18... Nc6 {[%clk 0:02:29.4]} 19. d5 {[%clk 0:02:30.8]} 19...
Na5 {[%clk 0:02:28.9]} 20. f5 {[%clk 0:02:14.3]} 20... Rc7 {[%clk 0:02:15.2]}
21. Bf4 {[%clk 0:02:08.9]} 21... Rc4 {[%clk 0:02:06.5]} 22. Bg3 {[%clk
0:02:08.7]} 22... Bd7 {[%clk 0:01:54.9]} 23. f6 {[%clk 0:02:08.9]} 23... g6
{[%clk 0:01:54.4]} 24. Re1 {[%clk 0:01:59.6]} 24... Bg4 {[%clk 0:01:53.4]} 25.
Qd3 {[%clk 0:01:43.2]} 25... Rac8 {[%clk 0:01:52.3]} 26. Re7 {[%clk 0:01:35.9]}
26... Bf5 {[%clk 0:01:48.6]} 27. Qe2 {[%clk 0:01:32.8]} 27... h6 {[%clk
0:01:39.9]} 28. gxh6 {[%clk 0:01:23.5]} 28... Rxc3 {[%clk 0:01:33.3]} 29. bxc3
{[%clk 0:01:23]} 29... Nac4 {[%clk 0:01:32.9]} 30. Re1 {[%clk 0:01:22.1]} 30...
Nd6 {[%clk 0:01:15.4]} 31. h7+ {[%clk 0:01:21.7]} 31... Kxh7 {[%clk 0:01:14.4]}
32. Bxd6 {[%clk 0:01:21.4]} 32... Qxd6 {[%clk 0:01:13.9]} 33. Rxf7+ {[%clk
0:01:22]} 33... Kg8 {[%clk 0:01:14]} 34. Rg7+ {[%clk 0:01:21.2]} 34... Kf8
{[%clk 0:01:13.9]} 35. Qe7+ {[%clk 0:01:19.8]} 35... Qxe7 {[%clk 0:01:13.8]} 36.
Rexe7 {[%clk 0:01:14.8]} 36... Rd8 {[%clk 0:01:10.4]} 37. Rh7 {[%clk 0:01:13.8]}
1-0

[Event "*** Titled Tuesday Blitz"]
[Site "Chess.com"]
[Date "2021.03.30"]
[Round "1"]
[White "Legendinunknown"]
[Black "SmallTurtleDuck"]
[Result "1-0"]
[WhiteElo "2611"]
[BlackElo "2309"]
[TimeControl "180+1"]
[EndTime "10:05:29 PDT"]
[Termination "Legendinunknown won by resignation"]

1. d4 {[%clk 0:02:34.1]} 1... d5 {[%clk 0:02:58.8]} 2. c4 {[%clk 0:02:32.1]}
2... c6 {[%clk 0:02:58.6]} 3. Nf3 {[%clk 0:02:31.1]} 3... Nf6 {[%clk 0:02:58.5]}
4. Nc3 {[%clk 0:02:29.1]} 4... e6 {[%clk 0:02:58.6]} 5. Bg5 {[%clk 0:02:27.7]}
5... dxc4 {[%clk 0:02:55.9]} 6. e4 {[%clk 0:02:24.5]} 6... b5 {[%clk 0:02:54.9]}
7. e5 {[%clk 0:02:23.8]} 7... h6 {[%clk 0:02:55.3]} 8. Bh4 {[%clk 0:02:24.3]}
8... g5 {[%clk 0:02:55.1]} 9. Nxg5 {[%clk 0:02:23.7]} 9... hxg5 {[%clk 0:02:56]}
10. Bxg5 {[%clk 0:02:24.6]} 10... Nbd7 {[%clk 0:02:56.6]} 11. exf6 {[%clk
0:02:24.5]} 11... Bb7 {[%clk 0:02:56.6]} 12. g3 {[%clk 0:02:24.2]} 12... Qb6
{[%clk 0:02:53]} 13. Bg2 {[%clk 0:02:23.9]} 13... O-O-O {[%clk 0:02:53.7]} 14.
O-O {[%clk 0:02:22.6]} 14... c5 {[%clk 0:02:54.3]} 15. d5 {[%clk 0:02:22.7]}
15... b4 {[%clk 0:02:54.5]} 16. Na4 {[%clk 0:02:22.3]} 16... Qa6 {[%clk
0:02:55]} 17. a3 {[%clk 0:02:22.7]} 17... Bxd5 {[%clk 0:02:53.9]} 18. Bxd5
{[%clk 0:02:21.3]} 18... Ne5 {[%clk 0:02:54.4]} 19. axb4 {[%clk 0:02:21.3]}
19... Rxd5 {[%clk 0:02:52.1]} 20. Qe2 {[%clk 0:02:19.3]} 20... cxb4 {[%clk
0:02:51.7]} 21. b3 {[%clk 0:02:11.3]} 21... Qc6 {[%clk 0:02:39.5]} 22. f4 {[%clk
0:02:09.6]} 22... Bc5+ {[%clk 0:02:26.2]} 23. Nxc5 {[%clk 0:02:08.3]} 23...
Qxc5+ {[%clk 0:02:27.1]} 24. Qf2 {[%clk 0:01:59.8]} 24... Qxf2+ {[%clk 0:02:21]}
25. Rxf2 {[%clk 0:01:58.1]} 25... Nd3 {[%clk 0:02:19.6]} 26. bxc4 {[%clk
0:01:57.4]} 26... Rxg5 {[%clk 0:02:10]} 27. fxg5 {[%clk 0:01:41.8]} 27... Nxf2
{[%clk 0:02:09.8]} 28. Kxf2 {[%clk 0:01:42.7]} 28... Rxh2+ {[%clk 0:02:09.5]}
29. Ke3 {[%clk 0:01:42.8]} 29... Kb7 {[%clk 0:02:03.1]} 30. Ra4 {[%clk
0:01:41.9]} 30... Rb2 {[%clk 0:01:58.9]} 31. g6 {[%clk 0:01:40]} 31... Rb3+
{[%clk 0:01:53.6]} 32. Kf4 {[%clk 0:01:39.2]} 32... fxg6 {[%clk 0:01:54]} 33. f7
{[%clk 0:01:38.9]} 33... Rb1 {[%clk 0:01:54.6]} 34. Rxb4+ {[%clk 0:01:37]} 34...
Rxb4 {[%clk 0:01:55.5]} 35. f8=Q {[%clk 0:01:34.8]} 35... Rxc4+ {[%clk 0:01:56]}
36. Kg5 {[%clk 0:01:33.7]} 36... a5 {[%clk 0:01:46.7]} 37. Qf7+ {[%clk
0:01:27.7]} 37... Kb6 {[%clk 0:01:46.7]} 38. Qxg6 {[%clk 0:01:24.5]} 38... Rc5+
{[%clk 0:01:43.5]} 39. Kf6 {[%clk 0:01:22.3]} 39... Kb5 {[%clk 0:01:43]} 40.
Qd3+ {[%clk 0:01:19.3]} 40... Kb4 {[%clk 0:01:42.6]} 41. Qd4+ {[%clk 0:01:14.2]}
41... Rc4 {[%clk 0:01:41.3]} 42. Qb6+ {[%clk 0:01:13.9]} 42... Ka4 {[%clk
0:01:41.4]} 43. Kxe6 {[%clk 0:01:12.3]} 43... Rb4 {[%clk 0:01:41.3]} 44. Qc5
{[%clk 0:01:08.6]} 44... Rg4 {[%clk 0:01:37.3]} 45. Qc2+ {[%clk 0:00:57.9]}
45... Kb4 {[%clk 0:01:34.5]} 46. Qd2+ {[%clk 0:00:57.9]} 46... Ka4 {[%clk
0:01:33.1]} 47. Qd1+ {[%clk 0:00:57.8]} 1-0